bitfinex/quotes_SOLUSD_20220311
["timestamp","ask_amount","ask_price","bid_price","bid_amount"]
[1647002378800,17.842,84.1,84.045,54.19248379]
[1647002378999,14.42,84.09,84.045,54.19248379]
[1647002379401,3.04447957,84.089,84.045,54.19248379]
[1647002379799,17.8471,84.08,84.045,54.19248379]
[1647002379998,32.2671,84.08,84.045,54.19248379]
[1647002380201,32.2671,84.08,84.028,24.2919]
[1647002381201,32.2671,84.08,84.029,47.29521495]
[1647002381605,32.2671,84.08,84.03,17.8444]
[1647002384124,14.42,84.08,84.03,17.8444]
[1647002384526,17.8428,84.09,84.03,17.8444]
[1647002385723,5.948,84.109,84.03,17.8444]
[1647002385923,14.42,84.11,84.03,17.8444]
[1647002386125,5.85,84.112,84.03,17.8444]
[1647002387129,5.85,84.112,84.05,17.8353]
[1647002387327,5.85,84.112,84.051,119.7]
[1647002388128,5.85,84.112,84.06,17.8319]
[1647002391335,1.63334434,84.129,84.06,17.8319]
[1647002391534,5.945,84.128,84.06,17.8319]
[1647002391733,8.98947957,84.128,84.06,17.8319]
[1647002391937,3.04447957,84.127,84.06,17.8319]
[1647002392244,119.7,84.109,83.99,59.4916]
[1647002392435,14.42,84.1,83.999,46.779]
[1647002392834,125.648,84.099,83.999,46.779]
[1647002393036,148.63358422,84.099,84.012,55.55016575]
[1647002393237,17.8497,84.08,84.012,55.55016575]
[1647002393436,14.42,84.07,84.012,55.55016575]
[1647002394740,17.8488,84.06,84.012,55.55016575]
[1647002397346,17.8461,84.07,84.02,17.8461]
[1647002398245,52.20500465,84.08,84.02,17.8461]
[1647002398446,20.369,84.09,84.02,17.8461]
[1647002399445,17.8436,84.08,84.02,17.8461]
[1647002399646,17.8436,84.08,84.013,22.7123]
[1647002399848,32.2636,84.08,84.013,22.7123]
[1647002400045,25.1850029,84.08,84.013,22.7123]
[1647002401446,25.1850029,84.08,84.02,17.8456]
[1647002402647,25.1850029,84.08,84.013,22.7123]
[1647002404048,25.1850029,84.08,84.014,6.0]
[1647002404346,25.1850029,84.08,84.013,22.7123]
[1647002405050,14.42,84.08,84.02,17.8455]
[1647002405447,17.8418,84.09,84.02,17.8455]
[1647002407653,17.8418,84.09,84.013,22.7123]
[1647002407654,35.30627957,84.09,84.013,22.7123]
[1647002407850,5.948,84.089,84.014,6.0]
[1647002408050,17.8479,84.07,84.013,22.7123]
[1647002409650,17.8479,84.07,84.02,17.8452]
[1647002411053,32.2679,84.07,84.013,22.7123]
[1647002411254,38.2879,84.07,84.013,22.7123]
[1647002411654,38.2879,84.07,83.94,126.17018592]
[1647002411655,122.74447957,84.069,83.94,126.17018592]
[1647002411855,17.8545,84.05,83.94,126.17018592]
[1647002412058,32.2745,84.05,83.947,119.7]
[1647002412256,119.7,84.049,83.958,54.4226]
[1647002412455,122.74447957,84.049,83.958,48.4226]
[1647002412658,122.74447957,84.049,83.959,65.66563837]
[1647002412854,3.04447957,84.048,83.959,65.66563837]
[1647002413054,119.7,84.029,83.959,65.66563837]
[1647002413255,14.42,84.02,83.959,65.66563837]
[1647002413655,17.46447957,84.02,83.959,65.66563837]
[1647002414057,21.76110465,84.019,83.959,65.66563837]
[1647002414256,17.8617,84.01,83.959,65.66563837]
[1647002414456,32.2817,84.01,83.959,65.66563837]
[1647002419189,122.74447957,84.009,83.943,22.6768]
[1647002419387,17.8673,83.99,83.933,5.953]
[1647002419689,32.2873,83.99,83.933,5.453]
[1647002420193,32.2873,83.99,83.934,47.31339118]
[1647002420389,32.2873,83.99,83.935,5.955]
[1647002420685,32.2873,83.99,83.934,47.31339118]
[1647002421289,119.7,83.989,83.934,47.31339118]
[1647002421487,119.7,83.979,83.912,5.955]
[1647002421788,14.42,83.97,83.911,23.6224]
[1647002422586,14.42,83.97,83.912,52.11394036]
[1647002423188,32.2907,83.97,83.912,52.11394036]
[1647002424489,119.7,83.969,83.912,52.11394036]
[1647002424799,119.7,83.959,83.836,6.22398024]
[1647002425089,119.7,83.949,83.823,149.499]
[1647002425294,119.7,83.939,83.823,149.499]
[1647002425491,5.96,83.938,83.823,149.499]
[1647002425690,5.96,83.938,83.824,15.76848971]
[1647002425893,14.42,83.94,83.825,169.57397216]
[1647002426192,14.42,83.94,83.825,95.32555438]
[1647002426390,14.42,83.94,83.826,64.17559236]
[1647002426590,14.42,83.94,83.827,119.7]
[1647002426789,14.42,83.94,83.829,119.7]
[1647002426992,14.42,83.94,83.831,119.7]
[1647002427192,14.42,83.94,83.85,59.5835]
[1647002427493,14.42,83.94,83.852,52.95280385]
[1647002428095,14.42,83.94,83.86,17.8751]
[1647002428493,14.42,83.94,83.861,24.949]
[1647002430095,14.42,83.94,83.87,17.8754]
[1647002430297,14.42,83.94,83.871,24.949]
[1647002432298,14.42,83.94,83.88,17.874]
[1647002432498,14.42,83.94,83.881,54.14234839]
[1647002433498,14.42,83.94,83.89,17.8723]
[1647002433697,14.42,83.94,83.882,22.6599]
[1647002434498,19.61,83.94,83.882,22.6599]
[1647002435500,14.42,83.94,83.882,22.6599]
[1647002437098,32.292,83.96,83.89,17.872]
[1647002437305,5.957,84.009,83.893,119.7]
[1647002437503,5.957,84.009,83.891,0.25]
[1647002437504,5.957,84.009,83.896,5.67896468]
[1647002437703,5.955,84.016,83.898,119.7]
[1647002438107,5.955,84.019,83.9,119.7]
[1647002438310,119.7,84.009,83.921,29.80375733]
[1647002438505,119.7,83.999,83.921,29.80375733]
[1647002438707,14.42,83.99,83.921,29.80375733]
[1647002439308,14.42,84.01,83.923,119.7]
[1647002439507,14.42,84.02,83.923,119.7]
[1647002439707,5.954,84.019,83.93,17.8634]
[1647002440107,14.78515881,84.018,83.93,17.8634]
[1647002440308,5.954,84.017,83.93,17.8634]
[1647002440711,14.78515881,84.018,83.93,17.8634]
[1647002441112,119.7,84.009,83.93,17.8634]
[1647002441515,3.04447957,84.008,83.93,17.8634]
[1647002441716,5.954,84.007,83.93,17.8634]
[1647002442136,3.04447957,84.006,83.93,17.8634]
[1647002442337,0.72915893,84.005,83.93,17.8634]
[1647002442541,32.2839,84.0,83.93,17.8634]
[1647002443938,3.04447957,83.999,83.922,45.4779]
[1647002444139,17.8671,83.99,83.922,45.4779]
[1647002444339,32.2871,83.99,83.922,45.4779]
[1647002444738,14.42,83.99,83.922,45.4779]
[1647002444938,14.42,83.99,83.923,119.7]
[1647002445142,17.8616,84.01,83.93,17.8642]
[1647002445340,32.2816,84.01,83.93,17.8642]
[1647002445538,5.954,84.009,83.93,17.8642]
[1647002446042,3.04447957,84.008,83.93,17.8642]
[1647002446237,17.8639,84.0,83.93,17.8642]
[1647002446438,4.5648484,83.999,83.93,17.8642]
[1647002446939,32.2839,84.0,83.93,17.8642]
[1647002447138,14.42,84.0,83.93,17.8642]
[1647002448740,5.954,83.999,83.93,17.8642]
[1647002449341,3.04447957,83.998,83.93,17.8642]
[1647002449742,17.8654,83.99,83.93,17.8642]
[1647002450542,20.72145018,83.99,83.93,17.8642]
[1647002450743,35.14145018,83.99,83.922,45.4779]
[1647002450944,3.04447957,83.989,83.922,45.4779]
[1647002451146,17.8683,83.98,83.922,45.4779]
[1647002451544,32.2883,83.98,83.922,45.4779]
[1647002452145,3.04447957,83.979,83.921,29.80375733]
[1647002452346,17.8696,83.97,83.921,29.80375733]
[1647002452546,31.7896,83.97,83.921,29.80375733]
[1647002455651,14.42,83.97,83.921,29.80375733]
[1647002457250,14.42,83.97,83.93,17.8647]
[1647002457453,14.42,83.97,83.921,29.80375733]
[1647002457651,3.04447957,83.969,83.921,29.80375733]
[1647002458050,14.42,83.97,83.921,29.80375733]
[1647002458550,14.42,83.97,83.93,17.8648]
[1647002459153,14.42,83.97,83.921,29.80375733]
[1647002460051,32.289,83.97,83.921,29.80375733]
[1647002463555,14.42,83.97,83.93,17.8644]
[1647002463956,14.42,83.99,83.93,17.8644]
[1647002469363,3.04447957,83.989,83.93,17.8644]
[1647002469564,122.74447957,83.989,83.922,48.1585]
[1647002469763,5.955,83.988,83.922,48.1585]
[1647002469963,119.7,83.987,83.922,48.1585]
[1647002470163,122.74447957,83.987,83.922,48.1585]
[1647002470462,17.8675,83.98,83.922,48.1585]
[1647002470664,32.2875,83.98,83.922,48.1585]
[1647002470863,3.04447957,83.979,83.922,48.1585]
[1647002471268,122.74447957,83.979,83.922,48.1585]
[1647002471466,3.04447957,83.99,83.922,48.1585]
[1647002472766,14.42,83.99,83.922,48.1585]
[1647002473367,14.42,83.99,83.93,17.8646]
[1647002473569,17.46447957,83.99,83.922,48.1585]
[1647002473771,5.955,83.989,83.922,48.1585]
[1647002474167,3.04447957,83.988,83.922,48.1585]
[1647002474365,5.955,83.987,83.922,48.1585]
[1647002474769,17.8685,83.98,83.922,48.1585]
[1647002474966,14.42,83.97,83.922,48.1585]
[1647002477096,32.2911,83.97,83.922,48.1585]
[1647002479600,9.00047957,83.969,83.84,14.42]
[1647002479798,17.8766,83.95,83.891,22.5004]
[1647002480003,32.2966,83.95,83.891,22.5004]
[1647002480399,3.04447957,83.949,83.891,22.5004]
[1647002480601,3.04447957,83.949,83.892,62.33650138]
[1647002482101,14.42,83.95,83.892,62.33650138]
[1647002482702,32.2946,83.95,83.892,62.33650138]
[1647002482901,14.42,83.95,83.893,15.99085348]
[1647002483805,24.6356,83.969,83.893,15.99085348]
[1647002484203,24.6356,83.969,83.9,17.8717]
[1647002484603,24.6356,83.969,83.901,39.80915348]
[1647002485003,24.6356,83.969,83.902,15.99085348]
[1647002486005,24.6356,83.969,83.92,17.8677]
[1647002486206,14.42,83.97,83.921,57.99801497]
[1647002488109,32.2891,83.97,83.921,57.99801497]
[1647002489212,32.2891,83.97,83.901,23.8183]
[1647002489410,122.74447957,83.969,83.901,23.8183]
[1647002489609,17.874,83.95,83.901,23.8183]
[1647002489810,17.874,83.95,83.902,15.97669304]
[1647002490210,17.874,83.95,83.903,60.04006903]
[1647002490611,32.2907,83.96,83.903,60.04006903]
[1647002492116,49.7567,83.96,83.903,60.04006903]
[1647002492318,49.7567,83.96,83.91,17.8705]
[1647002493216,49.7567,83.96,83.903,60.04006903]
[1647002495519,122.74447957,83.959,83.903,60.04006903]
[1647002495719,17.8761,83.95,83.903,60.04006903]
[1647002495923,32.2961,83.95,83.903,60.04006903]
[1647002496121,119.7,83.949,83.903,60.04006903]
[1647002496421,3.04447957,83.948,83.885,23.6024]
[1647002496622,119.7,83.947,83.885,23.6024]
[1647002496822,17.8757,83.94,83.886,15.97452182]
[1647002497226,32.2957,83.94,83.887,51.9762548]
[1647002497624,14.42,83.94,83.888,15.97452182]
[1647002498421,14.42,83.94,83.89,17.8744]
[1647002498821,14.42,83.94,83.891,15.97452182]
[1647002500425,17.8708,83.96,83.9,17.8724]
[1647002500625,32.2908,83.96,83.901,51.48723547]
[1647002501326,32.2908,83.96,83.902,22.7958]
[1647002502749,17.8708,83.96,83.902,22.7958]
[1647002502950,5.957,83.959,83.902,22.7958]
[1647002503150,5.957,83.967,83.902,22.7958]
[1647002503348,14.42,83.96,83.91,17.8698]
[1647002503648,14.42,83.97,83.911,63.80479637]
[1647002503849,5.956,83.969,83.911,63.80479637]
[1647002504049,14.42,83.97,83.911,63.80479637]
[1647002504249,17.46447957,83.97,83.912,22.6306]
[1647002504653,35.33267957,83.97,83.912,22.6306]
[1647002505049,5.956,83.969,83.912,22.6306]
[1647002505952,17.8723,83.96,83.912,22.6306]
[1647002506151,32.2923,83.96,83.912,22.6306]
[1647002508459,5.956,83.959,83.912,22.6306]
[1647002509356,17.8726,83.95,83.912,22.6306]
[1647002509956,5.956,83.959,83.912,22.6306]
[1647002510561,17.8728,83.95,83.912,22.6306]
[1647002510761,17.8728,83.95,83.9,17.8726]
[1647002510959,32.2928,83.95,83.9,17.8726]
[1647002511762,32.2928,83.95,83.901,53.8691739]
[1647002516368,122.74447957,83.949,83.885,29.093]
[1647002516667,17.8784,83.93,83.885,23.136]
[1647002517472,32.2984,83.93,83.885,23.136]
[1647002517669,17.8857,83.91,83.854,5.958]
[1647002517868,17.3857,83.91,83.855,23.9711]
[1647002518069,31.8057,83.91,83.855,23.9711]
[1647002518469,3.04447957,83.909,83.856,61.43603095]
[1647002518871,17.8854,83.9,83.856,61.43603095]
[1647002519070,32.3054,83.9,83.856,61.43603095]
[1647002519671,31.8054,83.9,83.856,61.43603095]
[1647002520901,31.3054,83.9,83.856,61.43603095]
[1647002522073,31.3054,83.9,83.844,22.8967]
[1647002522272,31.3054,83.9,83.845,23.1708]
[1647002522475,31.3054,83.9,83.845,39.10978058]
[1647002522973,31.3054,83.9,83.845,23.1708]
[1647002523171,31.3054,83.9,83.846,59.64897042]
[1647002524174,17.8866,83.89,83.846,59.64897042]
[1647002524375,5.961,83.899,83.846,59.64897042]
[1647002525277,17.8857,83.89,83.846,59.64897042]
[1647002525675,17.8857,83.89,83.845,23.1708]
[1647002527083,14.42,83.88,83.814,5.961]
[1647002527281,17.8963,83.87,83.814,5.961]
[1647002527482,17.8963,83.87,83.8,24.9897]
[1647002527483,119.7,83.869,83.8,24.9897]
[1647002527679,119.7,83.859,83.8,24.9897]
[1647002527896,119.7,83.859,83.801,15.96708527]
[1647002528278,141.16802837,83.859,83.8,24.9897]
[1647002528481,17.897,83.85,83.8,24.9897]
[1647002528680,14.42,83.86,83.801,5.964]
[1647002529679,32.3119,83.86,83.801,5.964]
[1647002531885,32.3119,83.86,83.8,24.9897]
[1647002533091,32.3119,83.86,83.8,42.8833]
[1647002533284,32.3119,83.86,83.801,5.964]
[1647002533485,3.04447957,83.879,83.801,5.964]
[1647002533984,14.42,83.88,83.802,15.86528903]
[1647002534183,3.04447957,83.879,83.803,5.963]
[1647002534384,3.04447957,83.879,83.811,55.07441592]
[1647002534583,14.42,83.88,83.812,29.3025]
[1647002535586,14.42,83.88,83.831,51.88339542]
[1647002538812,32.3072,83.88,83.831,51.88339542]
[1647002540416,32.3072,83.88,83.84,17.8848]
[1647002540417,14.42,83.88,83.84,17.8848]
[1647002540613,5.962,83.893,83.84,17.8848]
[1647002540614,14.42,83.9,83.84,17.8848]
[1647002540816,14.42,83.91,83.841,5.962]
[1647002541011,14.42,83.91,83.842,23.4368]
[1647002541213,14.42,83.91,83.844,65.89128162]
[1647002541613,32.3019,83.91,83.86,17.8781]
[1647002541814,14.42,83.91,83.861,51.61458352]
[1647002542013,5.96,83.907,83.861,51.61458352]
[1647002542414,3.04447957,83.906,83.861,51.61458352]
[1647002542815,17.8823,83.9,83.845,23.6761]
[1647002543016,119.7,83.899,83.843,5.961]
[1647002543216,128.70547957,83.899,83.843,5.961]
[1647002543419,153.36978962,83.899,83.811,47.1129]
[1647002543617,119.7,83.897,83.811,47.1129]
[1647002543818,119.7,83.889,83.809,57.53631604]
[1647002544018,119.7,83.879,83.809,57.53631604]
[1647002544422,119.7,83.869,83.782,46.3635]
[1647002544719,119.7,83.859,83.782,46.3635]
[1647002544921,14.42,83.85,83.782,46.3635]
[1647002545520,14.42,83.85,83.783,65.05305214]
[1647002545722,17.8963,83.84,83.783,65.05305214]
[1647002547022,32.3163,83.84,83.783,65.05305214]
[1647002547223,32.3163,83.84,83.79,17.896]
[1647002550626,32.3163,83.84,83.783,65.05305214]
[1647002551727,32.3163,83.84,83.79,17.8956]
[1647002553132,32.3163,83.84,83.783,65.05305214]
[1647002556630,32.3163,83.84,83.79,17.8959]
[1647002556829,5.965,83.839,83.79,17.8959]
[1647002557631,32.3163,83.84,83.79,17.8959]
[1647002557832,32.3163,83.84,83.782,46.3635]
[1647002558231,5.965,83.839,83.782,46.3635]
[1647002558431,17.8999,83.83,83.782,46.3635]
[1647002558632,32.3199,83.83,83.782,46.3635]
[1647002559934,3.04447957,83.829,83.782,46.3635]
[1647002560134,17.9017,83.82,83.73,191.2657346]
[1647002560332,17.9017,83.82,83.76,17.9016]
[1647002560536,5.966,83.829,83.761,23.0875]
[1647002560735,14.42,83.83,83.762,52.47459536]
[1647002561236,32.3174,83.83,83.762,52.47459536]
[1647002561636,14.42,83.83,83.762,52.47459536]
[1647002561834,14.42,83.83,83.781,52.40276629]
[1647002563237,14.42,83.83,83.78,17.8975]
[1647002563435,14.42,83.83,83.771,23.3877]
[1647002563436,32.317,83.83,83.771,23.3877]
[1647002564238,125.666,83.829,83.771,23.3877]
[1647002564438,153.37478962,83.829,83.763,63.93485332]
[1647002564746,17.9068,83.81,83.748,24.8723]
[1647002565148,3.04447957,83.809,83.748,24.8723]
[1647002565339,3.04447957,83.809,83.75,17.9044]
[1647002565539,17.9046,83.8,83.748,24.8723]
[1647002565740,32.3246,83.8,83.748,24.8723]
[1647002566139,32.3246,83.8,83.749,60.78653172]
[1647002567139,32.3246,83.8,83.75,17.9044]
[1647002567339,32.3246,83.8,83.749,60.78653172]
[1647002568339,32.3246,83.8,83.748,24.8723]
[1647002568739,125.668,83.799,83.748,24.8723]
[1647002568938,17.9106,83.79,83.71,24.5595]
[1647002569142,119.7,83.789,83.711,47.7822]
[1647002569343,14.42,83.78,83.711,47.7822]
[1647002570147,119.7,83.769,83.711,47.7822]
[1647002570545,14.42,83.76,83.711,47.7822]
[1647002571346,32.3379,83.76,83.711,47.7822]
[1647002571549,14.42,83.76,83.711,47.7822]
[1647002572348,14.42,83.76,83.712,5.971]
[1647002572550,14.42,83.76,83.72,17.9105]
[1647002572751,14.42,83.76,83.712,5.971]
[1647002573549,32.3321,83.76,83.712,5.971]
[1647002573750,32.3321,83.76,83.713,60.2326769]
[1647002575954,14.42,83.76,83.713,60.2326769]
[1647002577059,119.7,83.759,83.711,47.7822]
[1647002577254,3.04447957,83.759,83.711,47.7822]
[1647002577655,9.01547957,83.759,83.711,47.7822]
[1647002578354,5.971,83.759,83.711,47.7822]
[1647002579455,17.9142,83.75,83.711,47.7822]
[1647002580459,32.3342,83.75,83.711,47.7822]
[1647002580860,32.3342,83.75,83.672,5.971]
[1647002581062,122.74447957,83.749,83.673,49.906]
[1647002581262,17.9195,83.73,83.674,66.55780481]
[1647002581462,17.9195,83.73,83.674,82.53035517]
[1647002581961,17.9195,83.73,83.674,66.55780481]
[1647002582164,17.9195,83.73,83.68,17.9195]
[1647002582363,17.9195,83.73,83.681,5.973]
[1647002582561,32.3371,83.74,83.681,5.973]
[1647002582760,32.3371,83.74,83.675,5.972]
[1647002582960,39.5171,83.74,83.675,5.972]
[1647002583561,39.5171,83.74,83.68,17.9188]
[1647002583761,39.5171,83.74,83.681,5.973]
[1647002584161,39.5171,83.74,83.675,5.972]
[1647002584362,32.3371,83.74,83.675,5.972]
[1647002584563,32.3371,83.74,83.691,52.13739629]
[1647002587889,17.9428,83.747,83.7,17.9147]
[1647002588186,125.672,83.775,83.7,17.9147]
[1647002588388,5.971,83.767,83.7,17.9147]
[1647002588587,5.971,83.767,83.701,5.971]
[1647002588786,5.971,83.778,83.694,5.971]
[1647002588986,17.9089,83.78,83.721,61.8561836]
[1647002589187,5.97,83.779,83.722,23.0968]
[1647002589586,5.97,83.788,83.722,23.0968]
[1647002589996,5.97,83.788,83.73,17.9088]
[1647002590788,24.4078,83.789,83.73,17.9088]
[1647002591590,14.42,83.81,83.75,17.9019]
[1647002591794,5.969,83.819,83.752,59.88850314]
[1647002591989,5.966,83.827,83.752,59.88850314]
[1647002592191,5.966,83.827,83.755,119.7]
[1647002592389,5.966,83.839,83.756,5.966]
[1647002592593,15.96536133,83.862,83.757,119.7]
[1647002592594,5.966,83.849,83.757,119.7]
[1647002592790,17.8889,83.87,83.761,119.7]
[1647002592791,5.966,83.859,83.761,119.7]
[1647002592989,5.965,83.869,83.763,119.7]
[1647002593394,5.965,83.869,83.764,6.0]
[1647002593591,24.49097672,83.868,83.765,5.965]
[1647002593796,24.49097672,83.868,83.766,6.0]
[1647002593797,125.665,83.867,83.766,6.0]
[1647002593990,17.8924,83.86,83.78,17.8897]
[1647002594191,14.42,83.85,83.781,52.20357856]
[1647002594491,14.42,83.85,83.782,5.965]
[1647002596191,17.8966,83.84,83.79,17.8946]
[1647002597093,17.8966,83.84,83.782,5.965]
[1647002597293,32.3166,83.84,83.782,5.965]
[1647002598503,119.7,83.839,83.782,5.965]
[1647002598698,119.7,83.829,83.782,5.965]
[1647002599098,14.42,83.83,83.782,5.965]
[1647002599299,3.04447957,83.828,83.767,22.9893]
[1647002599498,3.04447957,83.828,83.78,56.69820324]
[1647002599800,17.9043,83.82,83.78,56.69820324]
[1647002600899,17.9043,83.82,83.767,22.9893]
[1647002601700,17.9043,83.82,83.768,58.12546924]
[1647002602706,17.9043,83.82,83.733,3.04447957]
[1647002602903,9.01047957,83.819,83.721,22.5802]
[1647002603104,17.9053,83.8,83.724,3.04447957]
[1647002603303,17.9053,83.8,83.733,18.3326]
[1647002603703,17.9053,83.8,83.753,78.7587551]
[1647002603904,17.9053,83.8,83.753,24.0643]
[1647002604408,32.3253,83.8,83.734,22.5802]
[1647002604704,5.968,83.799,83.734,22.5802]
[1647002604905,17.9078,83.79,83.734,22.5802]
[1647002605508,17.9078,83.79,83.718,22.7258]
[1647002605509,119.7,83.789,83.718,22.7258]
[1647002605806,5.969,83.788,83.673,45.64475466]
[1647002606011,17.9143,83.77,83.674,6.0]
[1647002606206,17.9143,83.77,83.674,25.0362189]
[1647002606405,17.9143,83.77,83.675,95.03943589]
[1647002606606,32.3343,83.77,83.676,6.0]
[1647002606806,32.3343,83.77,83.676,35.09593801]
[1647002607008,32.3343,83.77,83.677,45.08767734]
[1647002607205,32.3343,83.77,83.68,17.9151]
[1647002607606,32.3343,83.77,83.681,54.37303495]
[1647002607809,32.3343,83.77,83.681,70.36477428]
[1647002608006,32.3343,83.77,83.682,60.28636828]
[1647002608208,32.3343,83.77,83.682,76.27810761]
[1647002608406,50.4612,83.77,83.683,54.28636828]
[1647002608607,5.971,83.769,83.69,17.9136]
[1647002608808,17.9133,83.76,83.69,17.9136]
[1647002609007,17.9133,83.76,83.691,15.99173933]
[1647002609207,5.971,83.769,83.691,44.22664917]
[1647002609409,5.971,83.786,83.692,135.69173933]
[1647002609608,5.971,83.786,83.692,70.27810761]
[1647002609806,5.97,83.789,83.692,70.27810761]
[1647002610009,5.97,83.789,83.693,70.27810761]
[1647002610411,119.7,83.779,83.694,44.22664917]
[1647002610608,119.7,83.779,83.694,15.99173933]
[1647002610809,119.7,83.779,83.676,22.80315466]
[1647002610810,5.971,83.778,83.695,24.4236]
[1647002611611,17.9139,83.76,83.695,24.4236]
[1647002611809,119.7,83.759,83.676,22.80315466]
[1647002612009,5.972,83.758,83.676,24.4236]
[1647002612810,119.7,83.739,83.655,24.4895]
[1647002613016,5.973,83.738,83.655,24.4895]
[1647002613210,119.7,83.737,83.656,16.02872109]
[1647002613414,5.973,83.736,83.656,15.02872109]
[1647002613811,14.42,83.74,83.657,46.72998392]
[1647002614012,14.42,83.74,83.658,6.0]
[1647002615713,119.7,83.754,83.658,6.0]
[1647002616114,119.7,83.739,83.658,6.0]
[1647002616314,5.973,83.738,83.657,69.78098392]
[1647002616517,119.7,83.737,83.657,69.78098392]
[1647002616714,5.973,83.736,83.657,69.78098392]
[1647002617415,17.9265,83.72,83.657,23.051]
[1647002617817,119.7,83.719,83.642,24.594]
[1647002618019,5.974,83.718,83.642,24.594]
[1647002618448,5.974,83.718,83.643,58.56307308]
[1647002618616,17.9254,83.71,83.643,58.56307308]
[1647002619216,17.9254,83.71,83.644,6.0]
[1647002619418,5.974,83.719,83.644,6.0]
[1647002619616,119.7,83.732,83.645,23.8462]
[1647002619816,17.9209,83.73,83.65,17.9225]
[1647002620017,17.9209,83.73,83.651,6.0]
[1647002621022,17.9209,83.73,83.646,6.0]
[1647002621616,22.6575,83.733,83.646,6.0]
[1647002621617,17.9175,83.74,83.66,17.9207]
[1647002621818,14.42,83.75,83.661,143.5462]
[1647002622018,5.973,83.752,83.663,119.7]
[1647002622217,4.65390627,83.816,83.662,6.0]
[1647002622218,5.973,83.777,83.664,6.0]
[1647002622417,5.973,83.777,83.662,9.04447957]
[1647002622617,125.673,83.777,83.662,9.04447957]
[1647002622817,125.673,83.777,83.665,3.04447957]
[1647002623018,119.7,83.759,83.665,3.04447957]
[1647002623217,5.972,83.758,83.665,3.04447957]
[1647002624018,119.7,83.739,83.665,3.04447957]
[1647002624218,119.7,83.739,83.661,23.8462]
[1647002624418,119.7,83.737,83.661,23.8462]
[1647002624616,5.973,83.736,83.661,23.8462]
[1647002624819,119.7,83.735,83.661,23.8462]
[1647002625017,5.973,83.734,83.661,23.8462]
[1647002625420,17.9217,83.72,83.661,23.8462]
[1647002627825,17.9217,83.72,83.662,5.974]
[1647002628221,17.919,83.73,83.671,50.13381812]
[1647002629523,5.973,83.729,83.671,50.13381812]
[1647002629724,17.921,83.72,83.671,50.13381812]
[1647002630525,5.974,83.739,83.671,50.13381812]
[1647002630726,5.974,83.739,83.672,23.948]
[1647002630929,78.0703,83.74,83.672,23.948]
[1647002631927,119.7,83.739,83.672,23.948]
[1647002632126,17.9194,83.73,83.672,23.948]
[1647002636530,17.9194,83.73,83.673,5.973]
[1647002640239,3.04447957,83.745,83.68,17.9172]
[1647002640442,12.46499729,83.753,83.68,17.9172]
[1647002640643,18.3293,83.757,83.68,17.9172]
[1647002641659,5.972,83.767,83.68,17.9172]
[1647002642063,5.972,83.775,83.7,17.9115]
[1647002642260,5.971,83.777,83.702,59.66839369]
[1647002642460,24.834,83.782,83.702,59.66839369]
[1647002643262,24.834,83.782,83.71,17.9114]
[1647002643468,5.97,83.781,83.71,137.6114]
[1647002643665,5.97,83.8,83.712,119.7]
[1647002643865,23.8749,83.8,83.714,119.7]
[1647002644072,56.89242569,83.8,83.715,6.0]
[1647002644267,56.89242569,83.8,83.712,3.04447957]
[1647002644268,119.7,83.799,83.731,55.15501736]